[Event "56th Biel Festival MTO 2023"]
[White "Schnell,Simon"]
[Black "Papaux,Steve"]
[Site "Biel"]
[Round "8.47"]
[Annotator "ChessBase"]
[Result "0-1"]
[Date "2023.07.26"]
[WhiteElo "2029"]
[BlackElo "2064"]
[PlyCount "90"]
[TimeControl "60"]

1. d4 {[%emt 0:0:0]} d5 {[%emt 0:0:0]} 2. c4 {[%emt 0:0:0]} c6 {[%emt 0:0:0]} 3. Nc3 {[%emt 0:0:0]} Nf6 {[%emt 0:0:0]} 4. Nf3 {[%emt 0:0:0]} dxc4 {[%emt 0:0:0]} 5. a4 {[%emt 0:0:0]} Bf5 {[%emt 0:0:0]} 6. Nh4 {[%emt 0:0:0]} Bg6 {[%emt 0:0:0]} 7. Nxg6 {[%emt 0:0:0]} hxg6 {[%emt 0:0:0]} 8. e4 {[%emt 0:0:0]} e5 {[%emt 0:0:0]} 9. Be3 {[%emt 0:0:0]} Bb4 {[%emt 0:0:0]} 10. Bxc4 {[%emt 0:0:0]} O-O {[%emt 0:0:0]} 11. O-O {[%emt 0:0:34]} Bxc3 {[%emt 0:1:10]} 12. bxc3 {[%emt 0:0:4]} Nxe4 {[%emt 0:0:38]} 13. Qc2 {[%emt 0:4:22]} Nd6 {[%emt 0:0:38]} 14. Bb3 {[%emt 0:5:12]} Nf5 {[%emt 0:5:53]} 15. dxe5 {[%emt 0:6:53]} Qe7 {[%emt 0:10:58]} 16. e6 {[%emt 0:22:36]} fxe6 {[%emt 0:0:56]} 17. Rfe1 {[%emt 0:2:5]} Na6 {[%emt 0:8:55]} 18. Bd4 {[%emt 0:17:58]} Nc7 {[%emt 0:4:43]} 19. Be5 {[%emt 0:2:45]} Nd5 {[%emt 0:1:44]} 20. Qe2 {[%emt 0:2:25]} Qg5 {[%emt 0:12:53]} 21. g3 {[%emt 0:3:58]} Kh7 {[%emt 0:7:30]} 22. f4 {[%emt 0:1:56]} Qe7 {[%emt 0:1:34]} 23. c4 {[%emt 0:2:14]} Nb4 {[%emt 0:4:20]} 24. Red1 {[%emt 0:3:46]} Rfd8 {[%emt 0:3:28]} 25. Kh1 {[%emt 0:2:42]} Qc5 {[%emt 0:1:31]} 26. Bc3 {[%emt 0:2:14]} Nd5 {[%emt 0:2:7]} 27. Qe5 {[%emt 0:5:12]} Rh8 {[%emt 0:5:47]} 28. Rd3 {[%emt 0:3:42]} Qb6 {[%emt 0:4:11]} 29. cxd5 {[%emt 0:0:49]} exd5 {[%emt 0:0:21]} 30. Be1 {[%emt 0:3:2]} Rae8 {[%emt 0:1:53]} 31. Qc3 {[%emt 0:0:35]} Re2 {[%emt 0:1:53]} 32. Ra2 {[%emt 0:2:28]} d4 {[%emt 0:1:17]} 33. Qb4 {[%emt 0:1:37]} c5 {[%emt 0:0:29]} 34. Rxe2 {[%emt 0:4:30]} cxb4 {[%emt 0:0:29]} 35. Re6 {[%emt 0:0:10]} Qc5 {[%emt 0:2:6]} 36. Rf3 {[%emt 0:1:47]} Ne3 {[%emt 0:2:56]} 37. g4 {[%emt 0:1:59]} Nxg4 {[%emt 0:0:11]} 38. Rh3+ {[%emt 0:1:4]} Nh6 {[%emt 0:0:6]} 39. Bd2 {[%emt 0:0:47]} Qf5 {[%emt 0:0:54]} 40. Rg3 {[%emt 0:0:24]} Rc8 {[%emt 0:3:50]} 41. Kg2 {[%emt 0:0:0]} Rc2 {[%emt 0:0:0]} 42. Re2 {[%emt 0:0:0]} d3 {[%emt 0:0:0]} 43. Rf2 {[%emt 0:0:0]} Rb2 {[%emt 0:0:0]} 44. Bd1 {[%emt 0:0:0]} Qd5+ {[%emt 0:0:0]} 45. Bf3 {[%emt 0:0:0]} Qa2 {[%emt 0:0:0]} 0-1

[Event "56th Biel Festival MTO 2023"]
[White "Bu,Xiangzhi"]
[Black "Pranav Anand"]
[Site "Biel"]
[Round "9.1"]
[Annotator "RC"]
[Result "1-0"]
[Date "2023.07.27"]
[WhiteElo "2676"]
[BlackElo "2510"]
[PlyCount "87"]
[TimeControl "60"]

1. d4 {[%emt 0:0:0]} Nf6 {[%emt 0:0:0]} 2. c4 {[%emt 0:0:0]} e6 {[%emt 0:0:0]} 3. Nc3 {[%emt 0:0:0]} Bb4 {[%emt 0:0:0]} 4. e3 {[%emt 0:0:0]} O-O {[%emt 0:0:0]} 5. Bd3 {[%emt 0:0:0]} d5 {[%emt 0:0:0]} 6. a3 {[%emt 0:0:0]} Bxc3+ {[%emt 0:0:0]} 7. bxc3 {[%emt 0:0:0]} dxc4 {[%emt 0:0:0]} 8. Bxc4 {[%emt 0:0:0]} c5 {[%emt 0:0:0]} 9. Ne2 {[%emt 0:0:0]} Qc7 {[%emt 0:0:0]} 10. Bd3 {[%emt 0:0:0]} Nc6 {[%emt 0:0:0]} 11. f4 {[%emt 0:0:0]} b6 {[%emt 0:1:27]} 12. O-O {[%emt 0:0:0]} Ne7 {[%emt 0:2:11]} 13. Ng3 {[%emt 0:6:11]} Nf5 {[%emt 0:8:50]} 14. Qe2 {[%emt 0:14:26]} cxd4 {[%emt 0:13:57]} 15. cxd4 {[%emt 0:0:44]} Bb7 {[%emt 0:8:12]} 16. Nxf5 {[%emt 0:2:28]} exf5 {[%emt 0:0:2]} 17. Bxf5 {[%emt 0:0:8]} Rfe8 {[%emt 0:0:32]} 18. Bd2 {[%emt 0:1:37]} Rad8 {[%emt 0:4:24]} 19. Qd3 {[%emt 0:5:59]} Bd5 {[%emt 0:2:37]} 20. Rfc1 {[%emt 0:2:8]} Qb7 {[%emt 0:2:25]} 21. Bh3 {[%emt 0:0:13]} h5 {[%emt 0:9:58]} 22. a4 {[%emt 0:4:33]} a6 {[%emt 0:2:57]} 23. Qe2 {[%emt 0:10:14]} Be6 {[%emt 0:11:47]} 24. Bxe6 {[%emt 0:0:21]} Rxe6 {[%emt 0:0:1]} 25. Qf3 {[%emt 0:0:45]} Qd5 {[%emt 0:10:5]} 26. a5 {[%emt 0:6:17]} b5 {[%emt 0:3:58]} 27. f5 {[%emt 0:3:28]} Re7 {[%emt 0:5:10]} 28. Qxd5 {[%emt 0:5:17]} Nxd5 {[%emt 0:9:55]} 29. Kf2 {[%emt 0:2:16]} Rd6 {[%emt 0:0:0]} 30. Rc8+ {[%emt 0:0:57]} Kh7 {[%emt 0:0:32]} 31. Kf3 {[%emt 0:0:5]} g5 {[%emt 0:1:59]} 32. h3 {[%emt 0:7:21]} Rf6 {[%emt 0:0:30]} 33. g4 {[%emt 0:0:30]} hxg4+ {[%emt 0:0:30]} 34. hxg4 {[%emt 0:0:30]} Rh6 {[%emt 0:0:30]} 35. Re1 {[%emt 0:0:30]} Rh2 {[%emt 0:0:30]} 36. Re2 {[%emt 0:0:49]} Rh3+ {[%emt 0:1:17]} 37. Kg2 {[%emt 0:0:4]} Rh4 {[%emt 0:0:24]} 38. e4 {[%emt 0:0:3]} b4 {[%emt 0:0:33]} 39. Kg3 {[%emt 0:5:13]} Nf6 {[%emt 0:2:50]} 40. e5 {[%emt 0:0:6]} b3 {[%emt 0:0:17]} 41. Rb8 {[%emt 0:30:39]} Rxg4+ {[%emt 0:0:0]} 42. Kf3 {[%emt 0:0:0]} Rh4 {[%emt 0:0:0]} 43. Bxg5 {[%emt 0:0:0]} Rh5 {[%emt 0:0:0]} 44. Rh8+ {[%emt 0:0:0]} 1-0

[Event "56th Biel Festival MTO 2023"]
[White "Aryan Chopra"]
[Black "Samant Aditya S"]
[Site "Biel"]
[Round "9.2"]
[Annotator "TA"]
[Result "1-0"]
[Date "2023.07.27"]
[WhiteElo "2626"]
[BlackElo "2510"]
[PlyCount "62"]
[TimeControl "60"]

{[%evp 21,62,45,46,0,0,0,0,0,0,9,40,41,45,40,45,45,45,45,43,43,41,44,62,59,128,92,141,129,142,142,138,138,138,130,122,122,127,122,122,119,123,126,320]} 1. e4 {[%emt 0:0:0]} c5 {[%emt 0:0:0]} 2. Nf3 {[%emt 0:0:0]} d6 {[%emt 0:0:0]} 3. d4 {[%emt 0:0:0]} cxd4 {[%emt 0:0:0]} 4. Nxd4 {[%emt 0:0:0]} Nf6 {[%emt 0:0:0]} 5. Nc3 {[%emt 0:0:0]} Nc6 {[%emt 0:0:0]} 6. Bg5 {[%emt 0:0:0]} e6 {[%emt 0:0:0]} 7. Qd2 {[%emt 0:0:0]} a6 {[%emt 0:0:0]} 8. O-O-O {[%emt 0:0:0]} Bd7 {[%emt 0:0:0]} 9. f4 {[%emt 0:0:0]} b5 {[%emt 0:0:0]} 10. Bxf6 {[%emt 0:0:0]} gxf6 {[%emt 0:0:0]} 11. Kb1 {[%emt 0:0:0]} Qb6 {[%emt 0:0:0]} 12. f5 {[%emt 0:2:17] B67: Sicilian: Richter-Rauzer: 7...a6 8 0-0-0 Bd7, lines without 9 f4 Be7.} (12. Nf3 $14 )Qxd4 $11 {[%emt 0:0:0]} 13. Qxd4 {[%emt 0:0:11]} Nxd4 {[%emt 0:0:0]} 14. Rxd4 {[%emt 0:0:2] The position is equal.} Rb8 {[%emt 0:9:2]} 15. Be2 {[%emt 0:22:2] [#]} Rb6 $146 {[%emt 0:32:30]} ({Predecessor:} 15... Ke7 16. Bg4 Bh6 17. Ne2 Bc6 18. Rhd1 Rhd8 19. Bf3 a5 20. b3 Rbc8 21. R4d3 b4 {0-1 Schroeder,K (1697)-Schmidt,J (1906) Hamburg Junge op 2005 (4)} )16. a4 {[%emt 0:8:54]} Bh6 {[%emt 0:15:7]} 17. axb5 {[%emt 0:0:33]} axb5 {[%emt 0:3:1] [#]} 18. Bxb5 $1 {[%emt 0:2:51]} Bxb5 {[%emt 0:11:25]} 19. Rb4 $1 {[%emt 0:0:6]} Kd7 {[%emt 0:4:13] White must now prevent ...Rhb8.} 20. Rxb5 {[%emt 0:7:6]} Rxb5 {[%emt 0:2:4]} 21. Nxb5 $14 {[%emt 0:0:5][%mdl 4096] Endgame KRB-KRN} Bf4 {[%emt 0:0:59]} 22. Nd4 {[%emt 0:1:58]} h5 {[%emt 0:2:52]} (22... Rg8 $14 )23. Nf3 {[%emt 0:10:31]} h4 {[%emt 0:4:30]} (23... exf5 $142 24. exf5 Re8 )24. Re1 {[%emt 0:1:16]} Rh5 {[%emt 0:5:28]} 25. c3 {[%emt 0:3:53]} Be5 {[%emt 0:1:34]} 26. fxe6+ {[%emt 0:15:15]} fxe6 {[%emt 0:9:6]} 27. Kc2 {[%emt 0:0:10]} Rh8 {[%emt 0:0:30] White is better.} 28. Kd3 {[%emt 0:0:30]} Rg8 {[%emt 0:0:30]} 29. Re2 {[%emt 0:0:30]} ({Resist} 29. Nxh4 $6 Bxh2 30. Re2 Bg1 $14 )Ra8 {[%emt 0:0:30]} 30. h3 {[%emt 0:0:30]} Bg3 {[%emt 0:0:30]} 31. Nd4 {[%emt 0:1:15]} Kc7 $2 {[%emt 0:1:35] Weighted Error Value: White=0.06 (flawless) /Black=0.10 (very precise)} (31... Be5 $16 32. Nf3 Bg3 )1-0

[Event "56th Biel Festival MTO 2023"]
[White "Liu,Yan"]
[Black "Peng,Xiongjian"]
[Site "Biel"]
[Round "9.3"]
[Annotator "ChessBase"]
[Result "1/2-1/2"]
[Date "2023.07.27"]
[WhiteElo "2542"]
[BlackElo "2489"]
[PlyCount "31"]
[TimeControl "60"]

1. d4 {[%emt 0:0:0]} Nf6 {[%emt 0:0:0]} 2. c4 {[%emt 0:0:0]} e6 {[%emt 0:0:0]} 3. Nf3 {[%emt 0:0:0]} b6 {[%emt 0:0:0]} 4. g3 {[%emt 0:0:0]} Bb7 {[%emt 0:0:0]} 5. Bg2 {[%emt 0:0:0]} Be7 {[%emt 0:0:0]} 6. O-O {[%emt 0:0:0]} O-O {[%emt 0:0:0]} 7. Nc3 {[%emt 0:0:0]} Ne4 {[%emt 0:0:0]} 8. Qc2 {[%emt 0:0:0]} Nxc3 {[%emt 0:0:0]} 9. Qxc3 {[%emt 0:0:0]} Bf6 {[%emt 0:0:0]} 10. b3 {[%emt 0:0:0]} c5 {[%emt 0:0:0]} 11. Bb2 {[%emt 0:0:0]} cxd4 {[%emt 0:0:0]} 12. Nxd4 {[%emt 0:0:0]} Bxg2 {[%emt 0:0:0]} 13. Kxg2 {[%emt 0:0:0]} Nc6 {[%emt 0:0:0]} 14. Qd3 {[%emt 0:0:0]} Bxd4 {[%emt 0:1:11]} 15. Bxd4 {[%emt 0:0:0]} d5 {[%emt 0:0:37]} 16. Bb2 {[%emt 0:0:0]} 1/2-1/2

[Event "56th Biel Festival MTO 2023"]
[White "Rathanvel,V S"]
[Black "Vantika Agrawal"]
[Site "Biel"]
[Round "9.4"]
[Annotator "ChessBase"]
[Result "1/2-1/2"]
[Date "2023.07.27"]
[WhiteElo "2463"]
[BlackElo "2428"]
[PlyCount "33"]
[TimeControl "60"]

1. e4 {[%emt 0:0:0]} c5 {[%emt 0:0:0]} 2. Nf3 {[%emt 0:0:0]} d6 {[%emt 0:0:0]} 3. d4 {[%emt 0:0:0]} cxd4 {[%emt 0:0:0]} 4. Nxd4 {[%emt 0:0:0]} Nf6 {[%emt 0:0:0]} 5. Nc3 {[%emt 0:0:0]} a6 {[%emt 0:0:0]} 6. Be2 {[%emt 0:0:0]} e5 {[%emt 0:0:0]} 7. Nb3 {[%emt 0:0:0]} Be7 {[%emt 0:0:0]} 8. O-O {[%emt 0:0:0]} O-O {[%emt 0:0:0]} 9. Be3 {[%emt 0:0:0]} Be6 {[%emt 0:0:0]} 10. Bf3 {[%emt 0:0:0]} Nbd7 {[%emt 0:0:39]} 11. a4 {[%emt 0:0:0]} Qc7 {[%emt 0:12:24]} 12. a5 {[%emt 0:0:0]} Rac8 {[%emt 0:3:41]} 13. Re1 {[%emt 0:0:0]} h6 {[%emt 0:17:13]} 14. h3 {[%emt 0:0:53]} Rfe8 {[%emt 0:4:6]} 15. Re2 {[%emt 0:27:26]} Nh7 {[%emt 0:27:56]} 16. Rd2 {[%emt 0:3:37]} Ng5 {[%emt 0:4:1]} 17. Bg4 {[%emt 0:30:43]} 1/2-1/2

[Event "56th Biel Festival MTO 2023"]
[White "Samadov,Read"]
[Black "Nguyen,Ngoc Truong Son"]
[Site "Biel"]
[Round "9.5"]
[Annotator "RC"]
[Result "1/2-1/2"]
[Date "2023.07.27"]
[WhiteElo "2482"]
[BlackElo "2645"]
[PlyCount "30"]
[TimeControl "60"]

1. d4 {[%emt 0:0:0]} Nf6 {[%emt 0:0:0]} 2. c4 {[%emt 0:0:0]} e6 {[%emt 0:0:0]} 3. Nf3 {[%emt 0:0:0]} Bb4+ {[%emt 0:0:0]} 4. Nbd2 {[%emt 0:0:0]} b6 {[%emt 0:0:0]} 5. a3 {[%emt 0:0:0]} Bxd2+ {[%emt 0:0:0]} 6. Bxd2 {[%emt 0:0:0]} Bb7 {[%emt 0:0:0]} 7. e3 {[%emt 0:0:0]} O-O {[%emt 0:0:0]} 8. Bd3 {[%emt 0:0:0]} Ne4 {[%emt 0:0:0]} 9. O-O {[%emt 0:0:0]} d6 {[%emt 0:0:0]} 10. Bc1 {[%emt 0:3:57]} f5 {[%emt 0:6:43]} 11. Qe1 {[%emt 0:11:47]} Nd7 {[%emt 0:4:26]} 12. b3 {[%emt 0:6:14]} Qf6 {[%emt 0:11:0]} 13. Nd2 {[%emt 0:7:23]} Rae8 {[%emt 0:4:8]} 14. f3 {[%emt 0:3:30]} Ng5 {[%emt 0:5:54]} 15. Bb2 {[%emt 0:2:18]} c5 {[%emt 0:13:18]} 1/2-1/2

[Event "56th Biel Festival MTO 2023"]
[White "Shlyakhtenko,Robert"]
[Black "Quesada Perez,Luis Ernesto"]
[Site "Biel"]
[Round "9.6"]
[Annotator "ChessBase"]
[Result "1-0"]
[Date "2023.07.27"]
[WhiteElo "2401"]
[BlackElo "2553"]
[PlyCount "51"]
[TimeControl "60"]

1. d4 {[%emt 0:0:0]} Nf6 {[%emt 0:0:0]} 2. c4 {[%emt 0:0:0]} e6 {[%emt 0:0:0]} 3. Nc3 {[%emt 0:0:0]} Bb4 {[%emt 0:0:0]} 4. a3 {[%emt 0:0:0]} Bxc3+ {[%emt 0:0:0]} 5. bxc3 {[%emt 0:0:0]} b6 {[%emt 0:0:0]} 6. f3 {[%emt 0:0:0]} Nc6 {[%emt 0:0:0]} 7. e4 {[%emt 0:0:0]} d6 {[%emt 0:0:0]} 8. Bd3 {[%emt 0:0:0]} Na5 {[%emt 0:0:0]} 9. Bg5 {[%emt 0:0:0]} h6 {[%emt 0:0:0]} 10. Bh4 {[%emt 0:0:0]} Ba6 {[%emt 0:1:55]} 11. f4 {[%emt 0:0:0]} Qd7 {[%emt 0:1:8]} 12. e5 {[%emt 0:1:42]} Ng8 {[%emt 0:1:1]} 13. Qe2 {[%emt 0:7:36]} Ne7 {[%emt 0:23:42]} 14. Nf3 {[%emt 0:1:57]} Ng6 {[%emt 0:0:31]} 15. O-O {[%emt 0:10:54]} d5 {[%emt 0:5:11]} 16. cxd5 {[%emt 0:13:0]} Nxf4 {[%emt 0:2:56]} 17. Qe4 {[%emt 0:0:11]} Bxd3 {[%emt 0:0:6]} 18. Qxf4 {[%emt 0:1:36]} Bxf1 {[%emt 0:4:17]} 19. dxe6 {[%emt 0:0:16]} fxe6 {[%emt 0:8:56]} 20. Rxf1 {[%emt 0:2:2]} g5 {[%emt 0:2:42]} 21. Nxg5 {[%emt 0:25:39]} hxg5 {[%emt 0:0:40]} 22. Qf6 {[%emt 0:0:7]} Rg8 {[%emt 0:10:53]} 23. Bxg5 {[%emt 0:1:26]} Rc8 {[%emt 0:5:15]} 24. Qh6 {[%emt 0:6:49]} Qd5 {[%emt 0:4:56]} 25. Rf7 {[%emt 0:0:34]} Nc6 {[%emt 0:0:27]} 26. Rh7 {[%emt 0:1:18]} 1-0

[Event "56th Biel Festival MTO 2023"]
[White "Harikrishnan.A.Ra"]
[Black "Albornoz Cabrera,Carlos Daniel"]
[Site "Biel"]
[Round "9.7"]
[Annotator "ChessBase"]
[Result "1/2-1/2"]
[Date "2023.07.27"]
[WhiteElo "2406"]
[BlackElo "2591"]
[PlyCount "55"]
[TimeControl "60"]

1. d4 {[%emt 0:0:0]} Nf6 {[%emt 0:0:0]} 2. c4 {[%emt 0:0:0]} e6 {[%emt 0:0:0]} 3. Nf3 {[%emt 0:0:0]} d5 {[%emt 0:0:0]} 4. g3 {[%emt 0:0:0]} Bb4+ {[%emt 0:0:0]} 5. Bd2 {[%emt 0:0:0]} a5 {[%emt 0:0:0]} 6. Bg2 {[%emt 0:0:0]} O-O {[%emt 0:0:0]} 7. Qc2 {[%emt 0:0:0]} c5 {[%emt 0:0:0]} 8. cxd5 {[%emt 0:0:0]} cxd4 {[%emt 0:0:0]} 9. Nxd4 {[%emt 0:0:0]} Qb6 {[%emt 0:0:0]} 10. e3 {[%emt 0:0:0]} exd5 {[%emt 0:0:0]} 11. O-O {[%emt 0:0:0]} Nc6 {[%emt 0:0:0]} 12. Nxc6 {[%emt 0:0:0]} bxc6 {[%emt 0:0:0]} 13. Rc1 {[%emt 0:0:0]} Rb8 {[%emt 0:0:0]} 14. Bxb4 {[%emt 0:0:0]} Qxb4 {[%emt 0:0:0]} 15. b3 {[%emt 0:0:0]} h5 {[%emt 0:0:0]} 16. Nd2 {[%emt 0:0:0]} Bd7 {[%emt 0:0:0]} 17. Nf3 {[%emt 0:0:27]} Rfc8 {[%emt 0:0:0]} 18. Ne5 {[%emt 0:6:47]} Qd6 {[%emt 0:5:33]} 19. Nxd7 {[%emt 0:4:58]} Qxd7 {[%emt 0:0:30]} 20. Qd2 {[%emt 0:3:20]} Qa7 {[%emt 0:12:0]} 21. Rc2 {[%emt 0:7:43]} a4 {[%emt 0:5:17]} 22. Rac1 {[%emt 0:5:58]} axb3 {[%emt 0:5:22]} 23. axb3 {[%emt 0:0:8]} Rxb3 {[%emt 0:5:19]} 24. Rxc6 {[%emt 0:0:16]} Rxc6 {[%emt 0:0:18]} 25. Rxc6 {[%emt 0:0:7]} Rb1+ {[%emt 0:1:31]} 26. Rc1 {[%emt 0:1:17]} Qa1 {[%emt 0:2:10]} 27. Rxb1 {[%emt 0:0:31]} Qxb1+ {[%emt 0:0:4]} 28. Bf1 {[%emt 0:0:6]} 1/2-1/2

[Event "56th Biel Festival MTO 2023"]
[White "Meshkovs,Nikita"]
[Black "Deuer,Marius"]
[Site "Biel"]
[Round "9.8"]
[Annotator "ChessBase"]
[Result "1/2-1/2"]
[Date "2023.07.27"]
[WhiteElo "2565"]
[BlackElo "2374"]
[PlyCount "60"]
[TimeControl "60"]

1. c4 {[%emt 0:0:0]} Nf6 {[%emt 0:0:0]} 2. Nf3 {[%emt 0:0:0]} c5 {[%emt 0:0:0]} 3. d4 {[%emt 0:0:0]} cxd4 {[%emt 0:0:0]} 4. Nxd4 {[%emt 0:0:0]} Nc6 {[%emt 0:0:0]} 5. Nc3 {[%emt 0:0:0]} e6 {[%emt 0:0:0]} 6. a3 {[%emt 0:0:0]} Be7 {[%emt 0:0:0]} 7. g3 {[%emt 0:0:0]} Qb6 {[%emt 0:3:32]} 8. Ndb5 {[%emt 0:16:44]} Ne5 {[%emt 0:15:22]} 9. Bg2 {[%emt 0:13:27]} a6 {[%emt 0:16:14]} 10. Na4 {[%emt 0:0:20]} Qa5+ {[%emt 0:4:3]} 11. Nbc3 {[%emt 0:0:10]} Qc7 {[%emt 0:6:50]} 12. Bf4 {[%emt 0:5:46]} d6 {[%emt 0:2:9]} 13. c5 {[%emt 0:5:50]} dxc5 {[%emt 0:5:48]} 14. Bxe5 {[%emt 0:0:10]} Qxe5 {[%emt 0:0:5]} 15. Nb6 {[%emt 0:0:5]} Rb8 {[%emt 0:0:6]} 16. Nxc8 {[%emt 0:0:42]} Rxc8 {[%emt 0:0:5]} 17. Bxb7 {[%emt 0:0:6]} Rb8 {[%emt 0:0:50]} 18. Qa4+ {[%emt 0:5:16]} Kf8 {[%emt 0:0:5]} 19. Qxa6 {[%emt 0:0:10]} g6 {[%emt 0:0:59]} 20. a4 {[%emt 0:14:56]} Kg7 {[%emt 0:5:44]} 21. a5 {[%emt 0:10:6]} c4 {[%emt 0:2:0]} 22. O-O {[%emt 0:3:56]} h5 {[%emt 0:12:31]} 23. Qc6 {[%emt 0:24:16]} h4 {[%emt 0:25:37]} 24. a6 {[%emt 0:0:30]} hxg3 {[%emt 0:0:30]} 25. hxg3 {[%emt 0:0:30]} Nd5 {[%emt 0:0:30]} 26. Kg2 {[%emt 0:0:30]} Qf5 {[%emt 0:0:30]} 27. Qxc4 {[%emt 0:0:30]} Qh3+ {[%emt 0:0:30]} 28. Kf3 {[%emt 0:0:30]} Qf5+ {[%emt 0:0:30]} 29. Kg2 {[%emt 0:0:30]} Qh3+ {[%emt 0:0:30]} 30. Kf3 {[%emt 0:0:30]} Qf5+ {[%emt 0:0:30]} 1/2-1/2

[Event "56th Biel Festival MTO 2023"]
[White "Huston,Gus"]
[Black "Saraci,Nderim"]
[Site "Biel"]
[Round "9.9"]
[Annotator "ChessBase"]
[Result "1/2-1/2"]
[Date "2023.07.27"]
[WhiteElo "2341"]
[BlackElo "2472"]
[PlyCount "120"]
[TimeControl "60"]

1. d4 {[%emt 0:0:0]} Nf6 {[%emt 0:0:0]} 2. c4 {[%emt 0:0:0]} e6 {[%emt 0:0:0]} 3. Nf3 {[%emt 0:0:0]} c5 {[%emt 0:0:0]} 4. g3 {[%emt 0:0:0]} cxd4 {[%emt 0:3:25]} 5. Nxd4 {[%emt 0:0:0]} d5 {[%emt 0:0:49]} 6. Bg2 {[%emt 0:0:0]} e5 {[%emt 0:10:32]} 7. Nf3 {[%emt 0:0:0]} d4 {[%emt 0:1:28]} 8. O-O {[%emt 0:0:0]} Nc6 {[%emt 0:0:11]} 9. e3 {[%emt 0:0:0]} Be7 {[%emt 0:5:48]} 10. exd4 {[%emt 0:0:0]} exd4 {[%emt 0:0:37]} 11. Bf4 {[%emt 0:0:0]} O-O {[%emt 0:1:34]} 12. Ne5 {[%emt 0:0:0]} Nxe5 {[%emt 0:5:19]} 13. Bxe5 {[%emt 0:0:0]} d3 {[%emt 0:1:48]} 14. Nc3 {[%emt 0:0:0]} Ng4 {[%emt 0:11:23]} 15. Bf4 {[%emt 0:0:0]} Bf6 {[%emt 0:7:24]} 16. Nd5 {[%emt 0:14:6]} Bxb2 {[%emt 0:5:26]} 17. Rb1 {[%emt 0:0:2]} Be5 {[%emt 0:1:15]} 18. Qxd3 {[%emt 0:12:6]} Bxf4 {[%emt 0:1:17]} 19. gxf4 {[%emt 0:0:2]} Nf6 {[%emt 0:1:44]} 20. Qd4 {[%emt 0:1:7]} Nxd5 {[%emt 0:6:6]} 21. cxd5 {[%emt 0:0:7]} Qd6 {[%emt 0:0:27]} 22. Rfe1 {[%emt 0:1:2]} b6 {[%emt 0:9:8]} 23. Qe5 {[%emt 0:2:45]} Qg6 {[%emt 0:0:5]} 24. Rb3 {[%emt 0:0:55]} Bd7 {[%emt 0:0:5]} 25. Rg3 {[%emt 0:1:44]} Qh6 {[%emt 0:0:6]} 26. Ree3 {[%emt 0:13:36]} Rac8 {[%emt 0:3:5]} 27. h3 {[%emt 0:10:37]} Rfe8 {[%emt 0:0:30]} 28. Qd4 {[%emt 0:0:7]} Kf8 {[%emt 0:6:11]} 29. Rxe8+ {[%emt 0:9:54]} Bxe8 {[%emt 0:0:46]} 30. Rc3 {[%emt 0:15:0]} Rxc3 {[%emt 0:2:29]} 31. Qxc3 {[%emt 0:0:44]} Qxf4 {[%emt 0:7:16]} 32. Qa3+ {[%emt 0:0:5]} Kg8 {[%emt 0:0:5]} 33. Qe7 {[%emt 0:2:8]} Qc1+ {[%emt 0:0:10]} 34. Bf1 {[%emt 0:0:16]} Qc8 {[%emt 0:0:6]} 35. Qxa7 {[%emt 0:0:50]} Qd8 {[%emt 0:1:6]} 36. Bg2 {[%emt 0:7:21]} Qd6 {[%emt 0:0:19]} 37. Qb7 {[%emt 0:0:57]} Kf8 {[%emt 0:0:27]} 38. a4 {[%emt 0:1:48]} Bxa4 {[%emt 0:0:53]} 39. Qa8+ {[%emt 0:0:58]} Be8 {[%emt 0:0:7]} 40. Bf1 {[%emt 0:0:10]} Ke7 {[%emt 0:1:10]} 41. Qb7+ {[%emt 0:35:49]} Bd7 {[%emt 0:0:0]} 42. Bb5 {[%emt 0:0:0]} Qg6+ {[%emt 0:0:0]} 43. Kh2 {[%emt 0:0:0]} Qf5 {[%emt 0:0:0]} 44. d6+ {[%emt 0:0:0]} Kxd6 {[%emt 0:0:0]} 45. Qxb6+ {[%emt 0:0:0]} Ke7 {[%emt 0:0:0]} 46. Qe3+ {[%emt 0:0:0]} Be6 {[%emt 0:0:0]} 47. Bd3 {[%emt 0:0:0]} Qa5 {[%emt 0:0:52]} 48. h4 {[%emt 0:0:0]} h6 {[%emt 0:1:29]} 49. Qd4 {[%emt 0:0:0]} g6 {[%emt 0:1:38]} 50. Kg3 {[%emt 0:0:0]} h5 {[%emt 0:5:40]} 51. Kf4 {[%emt 0:0:0]} Qc7+ {[%emt 0:5:21]} 52. Kg5 {[%emt 0:0:0]} Qa5+ {[%emt 0:16:13]} 53. Kh6 {[%emt 0:0:0]} Qd5 {[%emt 0:6:3]} 54. Qxd5 {[%emt 0:0:0]} Bxd5 {[%emt 0:0:7]} 55. Kg5 {[%emt 0:0:0]} Bc6 {[%emt 0:1:3]} 56. Kf4 {[%emt 0:0:0]} Kf6 {[%emt 0:0:23]} 57. Kg3 {[%emt 0:0:0]} Bd7 {[%emt 0:0:58]} 58. f4 {[%emt 0:0:0]} Bf5 {[%emt 0:0:5]} 59. Bc4 {[%emt 0:0:0]} Be6 {[%emt 0:0:7]} 60. Bd3 {[%emt 0:0:0]} Bf5 {[%emt 0:0:5]} 1/2-1/2

[Event "56th Biel Festival MTO 2023"]
[White "Dotzer,Lukas"]
[Black "Chasin,Nico"]
[Site "Biel"]
[Round "9.10"]
[Annotator "ChessBase"]
[Result "0-1"]
[Date "2023.07.27"]
[WhiteElo "2369"]
[BlackElo "2455"]
[PlyCount "84"]
[TimeControl "60"]

1. e4 {[%emt 0:0:0]} c5 {[%emt 0:0:0]} 2. Nf3 {[%emt 0:0:0]} e6 {[%emt 0:0:0]} 3. d4 {[%emt 0:0:0]} cxd4 {[%emt 0:0:0]} 4. Nxd4 {[%emt 0:0:0]} Nc6 {[%emt 0:0:0]} 5. Nc3 {[%emt 0:0:0]} Qc7 {[%emt 0:0:0]} 6. Be3 {[%emt 0:0:0]} a6 {[%emt 0:0:0]} 7. Qf3 {[%emt 0:0:0]} Ne5 {[%emt 0:0:0]} 8. Qg3 {[%emt 0:0:0]} h5 {[%emt 0:0:0]} 9. Bf4 {[%emt 0:0:0]} d6 {[%emt 0:0:0]} 10. Bg5 {[%emt 0:0:0]} f6 {[%emt 0:0:13]} 11. Be3 {[%emt 0:8:8]} h4 {[%emt 0:1:54]} 12. Qh3 {[%emt 0:0:26]} g5 {[%emt 0:0:39]} 13. Be2 {[%emt 0:8:56]} Kf7 {[%emt 0:27:13]} 14. f4 {[%emt 0:14:33]} gxf4 {[%emt 0:0:18]} 15. Bxf4 {[%emt 0:1:6]} Ne7 {[%emt 0:0:37]} 16. O-O {[%emt 0:8:19]} N7g6 {[%emt 0:0:14]} 17. Be3 {[%emt 0:14:9]} Bd7 {[%emt 0:2:21]} 18. Rf2 {[%emt 0:7:52]} Be7 {[%emt 0:0:2]} 19. Raf1 {[%emt 0:5:20]} Raf8 {[%emt 0:0:4]} 20. Bg5 {[%emt 0:4:14]} Kg7 {[%emt 0:3:43]} 21. Be3 {[%emt 0:2:22]} Qc8 {[%emt 0:0:23]} 22. Bg4 {[%emt 0:1:41]} Kf7 {[%emt 0:6:14]} 23. Bg5 {[%emt 0:4:22]} Nxg4 {[%emt 0:3:46]} 24. Qxg4 {[%emt 0:0:22]} Ne5 {[%emt 0:2:53]} 25. Qe2 {[%emt 0:6:51]} Ke8 {[%emt 0:2:53]} 26. Be3 {[%emt 0:4:57]} b5 {[%emt 0:5:16]} 27. a3 {[%emt 0:9:11]} Rfg8 {[%emt 0:0:49]} 28. h3 {[%emt 0:0:41]} Nc4 {[%emt 0:2:36]} 29. Bc1 {[%emt 0:0:1]} Qc5 {[%emt 0:2:3]} 30. Qd3 {[%emt 0:1:59]} Rg3 {[%emt 0:41:19]} 31. Qd1 {[%emt 0:0:30]} Nxa3 {[%emt 0:0:30]} 32. e5 {[%emt 0:0:30]} fxe5 {[%emt 0:0:30]} 33. Nde2 {[%emt 0:0:30]} Bc6 {[%emt 0:0:30]} 34. Kh1 {[%emt 0:0:30]} Rxh3+ {[%emt 0:0:30]} 35. Kg1 {[%emt 0:0:30]} Rg8 {[%emt 0:0:30]} 36. Nd4 {[%emt 0:0:30]} exd4 {[%emt 0:0:30]} 37. Ne2 {[%emt 0:0:30]} d3 {[%emt 0:0:30]} 38. Nf4 {[%emt 0:0:30]} Rhg3 {[%emt 0:0:30]} 39. Kh2 {[%emt 0:0:30]} Nxc2 {[%emt 0:0:30]} 40. Nxe6 {[%emt 0:0:30]} Rxg2+ {[%emt 0:0:30]} 41. Rxg2 {[%emt 0:30:30]} Rxg2+ {[%emt 0:30:30]} 42. Kh3 {[%emt 0:0:30]} Qe5 {[%emt 0:0:30]} 0-1